bitfinex-derivatives/quotes_BTCF0:USTF0_20250822
["timestamp","ask_amount","ask_price","bid_price","bid_amount"]
[1755897567884,0.05496,116990.0,116980.0,1.24488]
[1755897568091,0.05496,116990.0,116980.0,1.64727085]
[1755897568691,0.02303,116990.0,116980.0,1.73276135]
[1755897569795,0.04519,116990.0,116980.0,1.73276135]
[1755897569992,0.04619,116990.0,116980.0,1.73276135]
[1755897570193,0.1316732,116990.0,116980.0,1.73276135]
[1755897570687,0.1095132,116990.0,116980.0,1.73276135]
[1755897570892,0.02403,116990.0,116980.0,1.73276135]
[1755897571289,0.001,116990.0,116980.0,1.73276135]
[1755897571687,0.001,116990.0,116980.0,1.98276135]
[1755897571986,0.0854806,117000.0,116990.0,0.0860832]
[1755897572189,0.0854806,117000.0,116990.0,0.84927405]
[1755897572392,0.1085106,117000.0,116990.0,0.84927405]
[1755897572792,0.1085106,117000.0,116990.0,0.4468832]
[1755897572982,0.1306706,117000.0,116990.0,0.84927405]
[1755897573187,0.1404406,117000.0,116990.0,0.84927405]
[1755897573394,0.1424406,117000.0,116990.0,0.84927405]
[1755897573994,0.1424406,117000.0,116990.0,0.4468832]
[1755897574592,0.1424406,117000.0,116990.0,0.84927405]
[1755897575492,0.16010962,117000.0,116990.0,0.84927405]
[1755897575692,0.16110962,117000.0,116990.0,0.85027405]
[1755897575995,0.19490962,117000.0,116990.0,0.4478832]
[1755897576195,0.19490962,117000.0,116990.0,0.85027405]
[1755897576998,0.19390962,117000.0,116990.0,0.84927405]
[1755897577699,0.19390962,117000.0,116990.0,0.76379085]
[1755897577886,0.22334962,117000.0,116990.0,0.76379085]
[1755897580798,0.22334962,117000.0,116990.0,0.36117]
[1755897580998,0.62574047,117000.0,116990.0,0.36117]
[1755897581999,0.22334962,117000.0,116990.0,0.36117]
[1755897589007,0.22334962,117000.0,116990.0,0.3608]
[1755897589499,0.87574047,117000.0,116990.0,0.3608]
[1755897589695,0.47334962,117000.0,116990.0,0.3608]
[1755897589907,0.87574047,117000.0,116990.0,0.3608]
[1755897590407,0.87574047,117000.0,116990.0,0.36117]
[1755897592208,0.47334962,117000.0,116990.0,0.36117]
[1755897592507,0.22334962,117000.0,116990.0,0.76356085]
[1755897592707,0.22334962,117000.0,116990.0,0.36117]
[1755897600612,0.22334962,117000.0,116990.0,0.76379085]
[1755897600819,0.22334962,117000.0,116990.0,0.3614]
[1755897603520,0.18954962,117000.0,116990.0,0.76379085]
[1755897603720,0.15033962,117000.0,116990.0,0.3614]
[1755897603914,0.15952962,117000.0,116990.0,0.76379085]
[1755897604117,0.15952962,117000.0,116990.0,0.84927405]
[1755897604422,0.01966902,117000.0,116990.0,2.24557405]
[1755897604923,0.01966902,117000.0,116990.0,2.29172087]
[1755897605328,0.01966902,117000.0,116990.0,2.04172087]
[1755897605528,0.01966902,117000.0,116990.0,2.29172087]
[1755897606030,0.01743902,117000.0,116990.0,2.02262087]
[1755897606421,0.01843902,117000.0,116990.0,1.77462087]
[1755897606931,0.001,117000.0,116990.0,1.72847405]
[1755897607431,0.001,117000.0,116990.0,1.97847405]
[1755897607832,0.001,117000.0,116990.0,1.5760832]
[1755897608021,0.001,117000.0,116990.0,1.97647405]
[1755897608222,0.0245,117010.0,117000.0,0.0854762]
[1755897608425,0.119425,117030.0,117010.0,0.0854678]
[1755897608735,0.182445,117030.0,117020.0,0.3608]
[1755897609142,0.206945,117030.0,117020.0,0.3608]
[1755897610631,0.208945,117030.0,117020.0,0.3618]
[1755897610836,0.208945,117030.0,117020.0,0.76419085]
[1755897611135,0.52893047,117030.0,117020.0,0.76419085]
[1755897611633,0.53093047,117030.0,117020.0,0.76419085]
[1755897612339,0.53293047,117030.0,117020.0,0.76419085]
[1755897613144,0.53293047,117030.0,117020.0,0.6309]
[1755897615731,0.93532132,117030.0,117020.0,0.6309]
[1755897616945,0.53293047,117030.0,117020.0,0.6309]
[1755897617146,0.93532132,117030.0,117020.0,0.6309]
[1755897617834,0.53293047,117030.0,117020.0,0.6309]
[1755897618035,0.55897493,117030.0,117020.0,0.6309]
[1755897618246,0.5505641,117030.0,117020.0,0.6309]
[1755897622247,0.96114946,117030.0,117020.0,0.6309]
[1755897622947,0.55875861,117030.0,117020.0,0.6309]
[1755897623137,0.96114946,117030.0,117020.0,0.6309]
[1755897624248,0.55875861,117030.0,117020.0,0.6309]
[1755897624449,0.96114946,117030.0,117020.0,0.6309]
[1755897624748,0.96114946,117030.0,117020.0,0.3618]
[1755897627645,0.55875861,117030.0,117020.0,0.3618]
[1755897627845,0.96114946,117030.0,117020.0,0.3618]
[1755897630052,0.71114946,117030.0,117020.0,0.3618]
[1755897631849,1.32194946,117030.0,117020.0,0.001]
[1755897632055,0.96114946,117030.0,117020.0,0.001]
[1755897632555,1.32194946,117030.0,117020.0,0.001]
[1755897632751,0.96114946,117030.0,117020.0,0.001]
[1755897633054,1.32194946,117030.0,117020.0,0.001]
[1755897633652,0.96114946,117030.0,117020.0,0.001]
[1755897634459,0.55875861,117030.0,117020.0,0.001]
[1755897635457,0.96114946,117030.0,117020.0,0.001]
[1755897646064,0.11814,117020.0,117010.0,0.2691]
[1755897646270,1.41024448,117020.0,117010.0,0.2691]
[1755897647058,1.00785363,117020.0,117010.0,0.2691]
[1755897647262,1.41024448,117020.0,117010.0,0.2691]
[1755897647459,1.41024448,117020.0,117010.0,0.2707]
[1755897647664,1.41024448,117020.0,117010.0,0.2691]
[1755897648365,1.01185363,117020.0,117010.0,0.2701]
[1755897648669,1.41424448,117020.0,117010.0,0.001]
[1755897650269,1.01185363,117020.0,117010.0,0.001]
[1755897650467,1.41424448,117020.0,117010.0,0.001]
[1755897652371,1.41424448,117020.0,117010.0,0.3644]
[1755897654974,1.41424448,117020.0,117010.0,0.3634]
[1755897655273,1.41424448,117020.0,117010.0,0.3644]
[1755897660376,1.41424448,117020.0,117010.0,0.3618]
[1755897660875,1.41424448,117020.0,117010.0,0.3634]
[1755897661077,1.41424448,117020.0,117010.0,0.3644]
[1755897661469,1.41424448,117020.0,117010.0,0.3618]
[1755897662882,1.01185363,117020.0,117010.0,0.3618]
[1755897663076,1.41424448,117020.0,117010.0,0.3618]
[1755897663276,1.41424448,117020.0,117010.0,0.3644]
[1755897664376,1.46404426,117020.0,117010.0,0.3644]
[1755897665077,1.46404426,117020.0,117010.0,0.81659063]
[1755897665267,1.01185363,117020.0,117010.0,0.81659063]
[1755897665577,1.01185363,117020.0,117010.0,0.3644]
[1755897665877,1.01190668,117020.0,117010.0,0.81659063]
[1755897666076,1.46409731,117020.0,117010.0,0.81659063]
[1755897667081,1.46409731,117020.0,117010.0,0.3644]
[1755897667378,1.46409731,117020.0,117010.0,0.81659063]
[1755897667573,1.46409731,117020.0,117010.0,0.3644]
[1755897668379,1.01190668,117020.0,117010.0,0.81659063]
[1755897668574,1.46409731,117020.0,117010.0,0.81659063]
[1755897669080,1.01190668,117020.0,117010.0,0.81659063]
[1755897669776,1.46409731,117020.0,117010.0,0.81659063]
[1755897670579,1.46409731,117020.0,117010.0,0.3644]
[1755897670779,1.46409731,117020.0,117010.0,0.81659063]
[1755897671081,1.46409731,117020.0,117010.0,0.3644]
[1755897673780,1.46409731,117020.0,117010.0,0.81659063]
[1755897674080,1.46409731,117020.0,117010.0,0.3644]
[1755897674281,1.46409731,117020.0,117010.0,0.3634]
[1755897674480,1.01190668,117020.0,117010.0,0.81659063]
[1755897674680,1.46409731,117020.0,117010.0,0.81659063]
[1755897677079,0.10540668,117020.0,117010.0,1.15205913]
[1755897677278,0.07549668,117020.0,117010.0,1.15205913]
[1755897677579,0.13883668,117020.0,117010.0,2.02013913]
[1755897677779,0.09088668,117020.0,117010.0,2.02013913]
[1755897678085,0.04511668,117020.0,117010.0,2.28923913]
[1755897680286,0.06794668,117020.0,117010.0,1.8370485]
[1755897680586,0.04511668,117020.0,117010.0,2.28923913]
[1755897681487,0.04511668,117020.0,117010.0,1.8370485]
[1755897681684,0.04511668,117020.0,117010.0,2.28923913]
[1755897682085,0.04511668,117020.0,117010.0,2.02013913]
[1755897682086,0.02168668,117020.0,117010.0,2.02013913]
[1755897682287,0.02168668,117020.0,117010.0,2.06626098]
[1755897682580,0.81299063,117060.0,117030.0,0.0854468]
[1755897682785,0.02314,117050.0,117040.0,0.952804]
[1755897682986,0.11017329,117050.0,117040.0,1.313604]
[1755897683183,0.04082174,117050.0,117040.0,1.563604]
[1755897683882,0.04082174,117050.0,117040.0,2.01579463]
[1755897684075,0.04082174,117050.0,117040.0,2.02417096]
[1755897684274,0.02314,117050.0,117040.0,1.97355333]
[1755897684688,0.02314,117050.0,117040.0,1.88810933]
[1755897684987,0.02814,117050.0,117040.0,1.48653633]
[1755897685288,0.02814,117050.0,117040.0,1.97355313]
[1755897685883,0.003,117060.0,117040.0,1.97355313]
[1755897686089,0.02614,117060.0,117050.0,0.8478097]
[1755897686288,0.02314,117060.0,117050.0,0.86521572]
[1755897687092,0.02314,117060.0,117050.0,1.02977902]
[1755897687286,0.08506,117060.0,117050.0,1.02977902]
[1755897687487,0.18422733,117060.0,117050.0,1.89645902]
[1755897688082,0.18422733,117060.0,117050.0,1.24488602]
[1755897688488,0.18422733,117060.0,117050.0,1.64645902]
[1755897688689,0.18722733,117060.0,117050.0,1.64645902]
[1755897688984,0.18722733,117060.0,117050.0,1.24488602]
[1755897689492,0.18722733,117060.0,117050.0,1.64645902]
[1755897690388,0.18722733,117060.0,117050.0,1.24488602]
[1755897690592,0.18722733,117060.0,117050.0,1.64645902]
[1755897691695,0.18722733,117060.0,117050.0,0.37820602]
[1755897691997,0.18722733,117060.0,117050.0,1.24444602]
[1755897692393,0.18722733,117060.0,117050.0,1.64601902]
[1755897692596,0.18722733,117060.0,117050.0,1.24444602]
[1755897692896,0.18722733,117060.0,117050.0,1.64601902]
[1755897694693,0.18722733,117060.0,117050.0,1.24444602]
[1755897694894,0.18722733,117060.0,117050.0,1.64601902]
[1755897695592,0.09364733,117060.0,117050.0,1.64601902]
[1755897696299,0.15695733,117060.0,117050.0,1.64601902]
[1755897696490,0.12529733,117060.0,117050.0,1.64601902]
[1755897697400,0.09364733,117060.0,117050.0,1.64601902]
[1755897697599,0.02614,117060.0,117050.0,1.89601902]
[1755897699098,0.02614,117060.0,117050.0,1.49444602]
[1755897699304,0.003,117060.0,117050.0,1.57988162]
[1755897699602,0.02577,117060.0,117050.0,1.89601902]
[1755897699994,0.02577,117060.0,117050.0,1.49444602]
[1755897700201,0.05742,117060.0,117050.0,1.49444602]
[1755897700504,0.05742,117060.0,117050.0,1.89601902]
[1755897700902,0.05742,117060.0,117050.0,1.02977902]
[1755897700903,0.08788,117060.0,117050.0,1.02977902]
[1755897701103,0.11954,117060.0,117050.0,1.89477902]
[1755897701304,0.02577,117060.0,117050.0,1.89477902]
[1755897701907,0.11954,117060.0,117050.0,1.49320602]
[1755897702116,0.11954,117060.0,117050.0,1.89477902]
[1755897702319,0.11954,117060.0,117050.0,1.89445902]
[1755897702513,0.11954,117060.0,117050.0,1.49288602]
[1755897702818,0.11954,117060.0,117050.0,1.64445902]
[1755897703722,0.11954,117060.0,117050.0,1.24288602]
[1755897703916,0.11954,117060.0,117050.0,1.64445902]
[1755897705213,0.08788,117060.0,117050.0,0.37820602]
[1755897705408,0.07366,117060.0,117050.0,1.64413902]
[1755897705608,0.07366,117060.0,117050.0,0.77977902]
[1755897705809,0.07366,117060.0,117050.0,1.64409902]
[1755897707712,0.10532,117060.0,117050.0,1.24252602]
[1755897707918,0.10532,117060.0,117050.0,1.64409902]
[1755897708316,0.07366,117060.0,117050.0,1.24252602]
[1755897708612,0.11954,117060.0,117050.0,1.64409902]
[1755897709515,0.13719825,117060.0,117050.0,1.64409902]
[1755897709711,0.13719844,117060.0,117050.0,1.24252602]
[1755897710017,0.13719844,117060.0,117050.0,1.64409902]
[1755897711217,0.13719844,117060.0,117050.0,1.24252602]
[1755897711516,0.13719844,117060.0,117050.0,1.64409902]
[1755897711718,0.13719844,117060.0,117050.0,0.77977902]
[1755897711918,0.13719844,117060.0,117050.0,1.64369902]
[1755897712120,0.13719844,117060.0,117050.0,0.37820602]
[1755897712319,0.13719844,117060.0,117050.0,1.24196602]
[1755897712721,0.13719844,117060.0,117050.0,1.64353902]
[1755897715018,0.13719844,117060.0,117050.0,1.24196602]
[1755897715322,0.13719844,117060.0,117050.0,1.24176602]
[1755897715714,0.13719844,117060.0,117050.0,1.24168602]
[1755897717118,0.13719844,117060.0,117050.0,1.24164602]
[1755897717626,0.38719844,117060.0,117050.0,0.37820602]
[1755897719525,0.35553844,117060.0,117050.0,0.37820602]
[1755897719725,0.35553844,117060.0,117050.0,0.77977902]
[1755897719726,0.38765844,117060.0,117050.0,0.77977902]
[1755897719922,0.38765844,117060.0,117050.0,0.37820602]
[1755897723225,0.78923144,117060.0,117050.0,0.37820602]
[1755897723922,0.35553844,117060.0,117050.0,0.37820602]
[1755897724129,0.38765844,117060.0,117050.0,0.37820602]
[1755897725334,0.13765844,117060.0,117050.0,0.37820602]
[1755897725718,0.13765844,117060.0,117050.0,0.77977902]
[1755897725918,0.10553844,117060.0,117050.0,0.37820602]
[1755897726227,0.07517844,117060.0,117050.0,0.37820602]
[1755897726425,0.13754844,117060.0,117050.0,0.37820602]
[1755897726624,0.13754844,117060.0,117050.0,0.77977902]
[1755897727824,0.13754844,117060.0,117050.0,0.37820602]
[1755897728032,0.13754844,117060.0,117050.0,0.77977902]
[1755897728225,0.13754844,117060.0,117050.0,0.37820602]
[1755897728531,0.13754844,117060.0,117050.0,0.77977902]
[1755897728833,0.13754844,117060.0,117050.0,0.37820602]
[1755897729131,0.13754844,117060.0,117050.0,1.24068602]
[1755897729630,0.10542844,117060.0,117050.0,1.24068602]
[1755897729833,0.13754844,117060.0,117050.0,1.24068602]
[1755897730820,0.09178844,117060.0,117050.0,1.24068602]
[1755897731024,0.09178844,117060.0,117050.0,1.64225902]
[1755897731025,0.07517844,117060.0,117050.0,1.64225902]
[1755897731532,0.13754844,117060.0,117050.0,1.64225902]
[1755897732330,0.10542844,117060.0,117050.0,1.64225902]
[1755897733433,0.13754844,117060.0,117050.0,1.64225902]
[1755897733632,0.13754844,117060.0,117050.0,1.24068602]
[1755897733932,0.13754844,117060.0,117050.0,1.64225902]
[1755897734624,0.13754844,117060.0,117050.0,1.24068602]
[1755897735935,0.13754844,117060.0,117050.0,0.37820602]
[1755897738440,0.13754844,117060.0,117050.0,0.77977902]
[1755897738733,0.13754844,117060.0,117050.0,0.37820602]
[1755897738936,0.13754844,117060.0,117050.0,0.77977902]
[1755897739136,0.07517844,117060.0,117050.0,0.77977902]
[1755897740440,0.07517844,117060.0,117050.0,0.37820602]
[1755897740640,0.07517844,117060.0,117050.0,0.77977902]
[1755897741342,0.04342844,117060.0,117050.0,0.77977902]
[1755897741543,0.04342844,117060.0,117050.0,0.37820602]
[1755897741738,0.04342844,117060.0,117050.0,0.77977902]
[1755897742041,0.02065844,117060.0,117050.0,0.77977902]
[1755897742340,0.02065844,117060.0,117050.0,0.86521432]
[1755897743442,0.02065844,117060.0,117050.0,0.46364132]
[1755897743643,0.02065844,117060.0,117050.0,0.86521432]
[1755897744138,0.02065844,117060.0,117050.0,0.50971366]
[1755897744444,0.02065844,117060.0,117050.0,0.91128666]
[1755897745642,0.02065844,117060.0,117050.0,0.86521432]
[1755897747049,0.04420844,117060.0,117050.0,0.86521432]
[1755897747552,0.04420844,117060.0,117050.0,0.77977902]
[1755897747747,0.02065844,117060.0,117050.0,1.11521442]
[1755897748346,0.02065844,117060.0,117050.0,0.71364142]
[1755897748548,0.02065844,117060.0,117050.0,1.11521442]
[1755897749843,0.04560844,117060.0,117050.0,0.71364142]
[1755897750048,0.04560844,117060.0,117050.0,0.86521442]
[1755897752047,0.04560844,117060.0,117050.0,1.13431442]
[1755897752439,0.06829844,117060.0,117050.0,1.13431442]
[1755897752742,0.04560844,117060.0,117050.0,1.13431442]
[1755897752949,0.04560844,117060.0,117050.0,0.86521442]
[1755897753143,0.06829844,117060.0,117050.0,0.86521442]
[1755897753749,0.07803844,117060.0,117050.0,0.86521442]
[1755897753953,0.05534844,117060.0,117050.0,0.86521442]
[1755897754248,0.04560844,117060.0,117050.0,0.86521442]
[1755897754748,0.06829844,117060.0,117050.0,0.86521442]
[1755897755149,0.06829844,117060.0,117050.0,0.46364142]
[1755897755448,0.06829844,117060.0,117050.0,0.86521442]
[1755897756849,0.06829844,117060.0,117050.0,0.46364142]
[1755897757049,0.04560844,117060.0,117050.0,0.86521442]
[1755897757745,0.02795,117060.0,117050.0,0.86521442]
[1755897757945,0.04611414,117060.0,117050.0,0.86521442]
[1755897758547,0.06880414,117060.0,117050.0,0.86521442]
[1755897761748,0.07854414,117060.0,117050.0,0.86521442]
[1755897761948,0.11313414,117060.0,117050.0,0.86521442]
[1755897762154,0.12962414,117060.0,117050.0,0.46364132]
[1755897762453,0.14420414,117060.0,117050.0,1.32436132]
[1755897762855,0.14420414,117060.0,117050.0,1.23892602]
[1755897763055,0.14420414,117060.0,117050.0,1.64049902]
[1755897763858,0.14420414,117060.0,117050.0,0.77977902]
[1755897764152,0.14420414,117060.0,117050.0,1.64037902]
[1755897764350,0.14420414,117060.0,117050.0,1.69056542]
[1755897764955,0.14420414,117060.0,117050.0,1.77600072]
[1755897765154,0.09503414,117060.0,117050.0,1.77600072]
[1755897765450,0.07854414,117060.0,117050.0,1.77600072]
[1755897765756,0.04611414,117060.0,117050.0,1.77600072]
[1755897766251,0.04611414,117060.0,117050.0,1.32424132]
[1755897766455,0.04611414,117060.0,117050.0,1.72573417]
[1755897767959,0.06880414,117060.0,117050.0,1.32424132]
[1755897768162,0.14420414,117060.0,117050.0,1.72573417]
[1755897768655,0.05585414,117060.0,117050.0,1.72573417]
[1755897768852,0.07854414,117060.0,117050.0,1.72573417]
[1755897770855,0.07854414,117060.0,117050.0,0.86513417]
[1755897771061,0.12962414,117060.0,117050.0,1.72545417]
[1755897771253,0.14420414,117060.0,117050.0,1.72545417]
[1755897772156,0.14420414,117060.0,117050.0,1.64001887]
[1755897772352,0.14420414,117060.0,117050.0,1.63985887]
[1755897772553,0.14420414,117060.0,117050.0,0.77969887]
[1755897772753,0.14420414,117060.0,117050.0,1.63985887]
[1755897776761,0.14420414,117060.0,117050.0,0.77969887]
[1755897776957,0.14420414,117060.0,117050.0,1.63961887]
[1755897777262,0.14420414,117060.0,117050.0,1.23812602]
[1755897777454,0.14420414,117060.0,117050.0,1.63961887]
[1755897777653,0.14420414,117060.0,117050.0,0.77969887]
[1755897777955,0.14420414,117060.0,117050.0,1.63957887]
[1755897778359,0.14420414,117060.0,117050.0,1.23804602]
[1755897778659,0.14420414,117060.0,117050.0,1.63953887]
[1755897780560,0.14420414,117060.0,117050.0,0.37820602]
[1755897780960,0.39420414,117060.0,117050.0,0.37820602]
[1755897781165,0.14420414,117060.0,117050.0,0.37820602]
[1755897785270,0.39420414,117060.0,117050.0,0.37820602]
[1755897785568,0.14420414,117060.0,117050.0,0.37820602]
[1755897792766,0.09503414,117060.0,117050.0,0.37820602]
[1755897793070,0.02116414,117060.0,117050.0,0.86513447]
[1755897793862,0.02116414,117060.0,117050.0,0.46364162]
[1755897794068,0.02116414,117060.0,117050.0,1.72405447]
[1755897799085,0.02116414,117060.0,117050.0,1.63861887]
[1755897799086,0.04465414,117060.0,117050.0,1.63861887]
[1755897799284,0.11162414,117060.0,117050.0,1.63825887]
[1755897799484,0.07727414,117060.0,117050.0,1.63825887]
[1755897801386,0.07727414,117060.0,117050.0,1.63817887]
[1755897802185,0.14050414,117060.0,117050.0,1.63817887]
[1755897802987,0.10615414,117060.0,117050.0,0.77969887]
[1755897803189,0.14050414,117060.0,117050.0,1.63805887]
[1755897804893,0.10615414,117060.0,117050.0,0.77969887]
[1755897805095,0.14050414,117060.0,117050.0,0.77969887]
[1755897805283,0.14050414,117060.0,117050.0,0.37820602]
[1755897805590,0.14050414,117060.0,117050.0,0.77969887]
[1755897807194,0.14050414,117060.0,117050.0,0.76229285]
[1755897808195,0.14050414,117060.0,117050.0,0.3608]
[1755897808390,1.64843699,117060.0,117050.0,0.3608]
[1755897808596,0.08355,117050.0,117040.0,0.3608]
[1755897808893,0.06923,117040.0,117030.0,0.3608]
[1755897809191,0.13466414,117040.0,117030.0,0.3608]
[1755897809384,0.07151414,117040.0,117030.0,0.76229285]
[1755897809589,0.01816414,117040.0,117030.0,2.31618325]
[1755897809796,0.02263,117050.0,117030.0,2.31618325]
[1755897810095,0.04079414,117050.0,117040.0,0.76229285]
[1755897810597,0.04079414,117050.0,117040.0,0.76329285]
[1755897811396,0.06239414,117050.0,117040.0,0.76329285]
[1755897812196,0.07151414,117050.0,117040.0,0.76329285]
[1755897813097,0.13466414,117050.0,117040.0,0.3618]
[1755897813795,0.13466414,117050.0,117040.0,0.76329285]
[1755897813993,0.13466414,117050.0,117040.0,0.3618]
[1755897814398,0.13466414,117050.0,117040.0,0.76329285]
[1755897818195,0.13466414,117050.0,117040.0,0.3618]
[1755897818396,0.13466414,117050.0,117040.0,0.76329285]
[1755897818698,0.13466414,117050.0,117040.0,0.3618]
[1755897818899,0.13466414,117050.0,117040.0,0.76329285]
[1755897819500,0.10171414,117050.0,117040.0,0.76329285]
[1755897819901,0.13466414,117050.0,117040.0,0.76329285]
[1755897820100,0.12101414,117050.0,117040.0,0.3618]
[1755897820295,0.12101414,117050.0,117040.0,0.76329285]
[1755897822298,0.12101414,117050.0,117040.0,0.81361514]
[1755897823394,0.08806414,117050.0,117040.0,0.81361514]
[1755897824692,0.12101414,117050.0,117040.0,0.3618]
[1755897824996,0.12101414,117050.0,117040.0,0.81361514]
[1755897826803,0.08806414,117050.0,117040.0,0.81361514]
[1755897828802,0.04079414,117050.0,117040.0,0.81361514]
[1755897829197,0.04079414,117050.0,117040.0,0.89905814]
[1755897829394,0.04079414,117050.0,117040.0,1.16815814]
[1755897829591,0.01816414,117050.0,117040.0,1.41815814]
[1755897829797,0.03628,117070.0,117040.0,1.41815814]
[1755897829798,0.48362928,117070.0,117040.0,1.41815814]
[1755897830100,0.13466414,117070.0,117060.0,0.81261514]
[1755897830301,0.58647928,117070.0,117060.0,0.81261514]
[1755897831007,0.08806414,117070.0,117060.0,0.81261514]
[1755897831904,0.09306414,117070.0,117060.0,0.81361514]
[1755897832106,0.13966414,117070.0,117060.0,0.81361514]
[1755897832307,0.13966414,117070.0,117060.0,1.26543028]
[1755897832698,0.13966414,117070.0,117060.0,0.81361514]
[1755897833302,0.13966414,117070.0,117060.0,1.26543028]
[1755897833505,0.13966414,117070.0,117060.0,1.35085848]
[1755897833701,0.13966414,117070.0,117060.0,0.3618]
[1755897833906,0.13966414,117070.0,117060.0,1.26543028]
[1755897834208,0.13966414,117070.0,117060.0,0.81361514]
[1755897834602,0.13966414,117070.0,117060.0,1.26543028]
[1755897834804,0.13966414,117070.0,117060.0,1.53453028]
[1755897837106,0.13966414,117070.0,117060.0,0.6309]
[1755897837805,0.13966414,117070.0,117060.0,1.08271514]
[1755897838401,0.09306414,117070.0,117060.0,1.08271514]
[1755897839106,0.13989414,117070.0,117060.0,1.08271514]
[1755897840608,0.05491414,117070.0,117060.0,1.53453028]
[1755897840808,0.07664414,117070.0,117060.0,1.26543028]
[1755897841410,0.10977414,117070.0,117060.0,1.26543028]
[1755897841705,0.04579414,117070.0,117060.0,1.26543028]
[1755897842601,0.02316414,117070.0,117060.0,1.35085868]
[1755897843007,0.04775414,117070.0,117060.0,1.35085868]
[1755897844008,0.02316414,117070.0,117060.0,1.35085868]
[1755897844308,0.02316414,117070.0,117060.0,1.60916356]
[1755897845414,0.02316414,117070.0,117060.0,1.35916356]
[1755897845907,0.005,117070.0,117060.0,1.35916356]
[1755897846304,0.02324011,117070.0,117060.0,1.35916356]
[1755897846506,0.04783011,117070.0,117060.0,1.35916356]
[1755897846811,0.07941011,117070.0,117060.0,1.26543028]
[1755897847012,0.10971011,117070.0,117060.0,1.26543028]
[1755897847211,0.14284011,117070.0,117060.0,1.21592]
[1755897847407,0.14284011,117070.0,117060.0,1.66773514]
[1755897847913,0.14284011,117070.0,117060.0,2.11955028]
[1755897848311,0.14284011,117070.0,117060.0,1.66749514]
[1755897848713,0.14284011,117070.0,117060.0,2.11931028]
[1755897848909,0.1109,117070.0,117060.0,2.11931028]
[1755897849115,0.06117,117070.0,117060.0,2.11931028]
[1755897850808,0.06117,117070.0,117060.0,1.21568]
[1755897851009,0.06117,117070.0,117060.0,2.11931028]
[1755897851210,0.06117,117070.0,117060.0,2.11907028]
[1755897851509,0.11253652,117070.0,117060.0,2.11907028]
[1755897853309,0.07940652,117070.0,117060.0,2.11907028]
[1755897853814,0.10970652,117070.0,117060.0,2.11875028]
[1755897854011,0.14283652,117070.0,117060.0,2.11875028]
[1755897854715,0.12913652,117070.0,117060.0,2.11875028]
[1755897854914,0.12913652,117070.0,117060.0,2.20417858]
[1755897855117,0.09600652,117070.0,117060.0,2.20417858]
[1755897855308,0.09600652,117070.0,117060.0,1.26543028]
[1755897855514,0.14283652,117070.0,117060.0,1.66685514]
[1755897855715,0.14283652,117070.0,117060.0,2.11867028]
[1755897856503,0.09600652,117070.0,117060.0,2.11867028]
[1755897856707,0.07940652,117070.0,117060.0,2.11867028]
[1755897858120,0.14283652,117070.0,117060.0,1.21504]
[1755897858324,0.14283652,117070.0,117060.0,2.11867028]
[1755897858516,0.14283652,117070.0,117060.0,2.38777028]
[1755897858819,0.14283652,117070.0,117060.0,1.48414]
[1755897859015,0.14283652,117070.0,117060.0,2.38777028]
[1755897862617,0.14283652,117070.0,117060.0,2.38693028]
[1755897863619,0.14283652,117070.0,117060.0,1.66601514]
[1755897864324,0.10970652,117070.0,117060.0,2.11783028]
[1755897864717,0.14283652,117070.0,117060.0,2.11783028]
[1755897865223,0.12913652,117070.0,117060.0,2.11783028]
[1755897865518,0.09600652,117070.0,117060.0,2.11783028]
[1755897865823,0.04782652,117070.0,117060.0,2.11783028]
[1755897866019,0.09600652,117070.0,117060.0,2.11783028]
[1755897866220,0.14283652,117070.0,117060.0,0.3618]
[1755897866422,0.14283652,117070.0,117060.0,1.66549514]
[1755897868730,0.14283652,117070.0,117060.0,2.11731028]
[1755897869321,0.14283652,117070.0,117060.0,1.21368]
[1755897869622,0.14283652,117070.0,117060.0,2.11731028]
[1755897871928,0.14283652,117070.0,117060.0,1.21368]
[1755897872129,0.14283652,117070.0,117060.0,2.11731028]
[1755897875039,0.14283652,117070.0,117060.0,1.21368]
[1755897875338,0.14283652,117070.0,117060.0,2.11731028]
[1755897877835,0.14283652,117070.0,117060.0,1.21368]
[1755897878039,0.59465166,117070.0,117060.0,1.66549514]
[1755897878239,0.14283652,117070.0,117060.0,1.66549514]
[1755897878535,0.59465166,117070.0,117060.0,1.66549514]
[1755897878739,0.14283652,117070.0,117060.0,1.66549514]
[1755897879541,0.59465166,117070.0,117060.0,1.66549514]
[1755897880635,0.14283652,117070.0,117060.0,1.21368]
[1755897880940,0.14283652,117070.0,117060.0,1.66549514]
[1755897881238,0.14283652,117070.0,117060.0,0.3618]
[1755897881434,0.59465166,117070.0,117060.0,0.81361514]
[1755897881639,0.84465166,117070.0,117060.0,0.3618]
[1755897882239,0.84465166,117070.0,117060.0,0.81361514]
[1755897883541,0.84465166,117070.0,117060.0,0.3618]
[1755897883740,0.84465166,117070.0,117060.0,0.81361514]
[1755897886339,0.84465166,117070.0,117060.0,0.3618]
[1755897886544,0.84465166,117070.0,117060.0,0.81361514]
[1755897889744,0.84465166,117070.0,117060.0,0.3618]
[1755897889947,0.84465166,117070.0,117060.0,0.81361514]
[1755897891144,0.84465166,117070.0,117060.0,0.3618]
[1755897891344,0.84465166,117070.0,117060.0,0.81361514]
[1755897893548,0.84465166,117070.0,117060.0,0.3618]
[1755897893748,0.84465166,117070.0,117060.0,0.81361514]
[1755897895442,0.84465166,117070.0,117060.0,0.3618]
[1755897895949,0.84465166,117070.0,117060.0,0.81361514]
[1755897898650,0.84465166,117070.0,117060.0,0.3618]
[1755897900950,0.39283652,117070.0,117060.0,0.3618]
[1755897901351,0.84465166,117070.0,117060.0,0.3618]
[1755897902751,1.20545166,117070.0,117050.0,0.01881342]
[1755897902948,3.29835028,117060.0,117040.0,0.81261514]
[1755897903248,0.57055514,117050.0,117040.0,0.81261514]
[1755897903455,0.13697652,117050.0,117040.0,0.81261514]
[1755897903657,0.58879166,117050.0,117040.0,0.81261514]
[1755897904549,0.13697652,117050.0,117040.0,0.81261514]
[1755897904748,0.58879166,117050.0,117040.0,0.81261514]
[1755897904955,0.58879166,117050.0,117040.0,0.81361514]
[1755897905457,0.58879166,117050.0,117040.0,0.3618]
[1755897905657,0.58879166,117050.0,117040.0,0.81361514]
[1755897905958,0.59742797,117050.0,117040.0,0.81361514]
[1755897906161,0.59742797,117050.0,117040.0,0.3618]
[1755897906460,0.59742797,117050.0,117040.0,0.81361514]
[1755897906650,0.14561283,117050.0,117040.0,0.81361514]
[1755897907144,0.59742797,117050.0,117040.0,0.81361514]
[1755897908259,0.59742797,117050.0,117040.0,0.3618]
[1755897908560,0.59742797,117050.0,117040.0,0.81361514]
[1755897910661,0.59742797,117050.0,117040.0,0.3618]
[1755897910862,0.59742797,117050.0,117040.0,0.81361514]
[1755897912058,0.58879166,117050.0,117040.0,0.81361514]
[1755897912262,0.07219652,117050.0,117040.0,0.81361514]
[1755897912762,0.10647652,117050.0,117040.0,0.81361514]